Cogmind - Beta 15 @@@ ROGUE MODE // 2025.08.14 @ 15:20:15 Player: shapeshifter Result: Destroyed by Y-72 Warden with Quantum Rifle Performance ------------- Evolutions (6) 3000 Regions Visited (13) 2600 Robots Destroyed (61) 305 Value Destroyed (1914) 1914 Prototype IDs (37) 740 Alien Tech Used (2) 400 Bonus (1100) 1100 TOTAL SCORE: 10059 Bonus ------- Registered with UFD 300 Met Optimus in HQ 500 Met Zhirov 300 Cogmind --------- Core Integrity 0/1150 Matter 156/300 Energy 100/100 System Corruption 37% Temperature Cool (9) Movement Walking (120) Location -3/Proximity Caves Parts ------- > --- POWER (3) -------- (None) > --- PROPULSION (7) --- Advanced Myomer Leg > --- UTILITY (7) ------ Medium Storage Unit Enhanced Optical Array Advanced Sensor Array Advanced Signal Interpreter 0b10 Decoder Chip [Scout] > --- WEAPON (2) ------- Quantum Rifle Companion Sword > --- INVENTORY (10) --- Heavy Antimatter Reactor Advanced Coolant Injector Energy Well (350) Advanced Actuator Array Advanced ECM Suite Enhanced Scrap Shield Advanced System Shield Lance Peak State ------------ > --- POWER ------------ Improved Ion Engine Micro Nuclear Core Antimatter Reactor > --- PROPULSION ------- Nuclear Pulse Thruster Nuclear Pulse Thruster Cooled Cesium-ion Thruster Flightbrick > --- UTILITY ---------- Advanced Power Amplifier Medium Storage Unit Advanced Weight Redist. System Enhanced Optical Array Advanced Sensor Array Advanced Signal Interpreter 0b10 Decoder Chip [Generic] Improved Melee Analysis Suite A0-MCA's Component Scanner > --- WEAPON ----------- Advanced Datajack Companion Sword > --- INVENTORY -------- Impulse Thruster Large Storage Unit Energy Well Improved Transmission Jammer Advanced ECM Suite Improved Reaction Control System Improved Focal Shield Advanced Shield Generator Advanced Plasma Cannon Spear [Rating: 127] Favorites ----------- Power Subdweller Power Source Engine Subdweller Power Source Power Core Light Nuclear Core Reactor Light Antimatter Reactor Propulsion Aluminum Leg Treads Improved Treads Leg Aluminum Leg Wheel Subdweller Monowheel Hover Unit Gravmag Array Flight Unit Flightbrick Utility High-capacity Storage Unit Device Improved Terrain Scanner Storage High-capacity Storage Unit Processor Enhanced Optical Array Hackware Hacking Suite Protection Improved Light Armor Plating Weapon Slug Cannon Energy Gun Subdweller Laser Energy Cannon Beam Cannon Ballistic Gun Light Assault Rifle Ballistic Cannon Slug Cannon Launcher Subdweller Shrapnel Launcher Slashing Weapon Companion Sword Piercing Weapon Lance Special Melee Weapon Advanced Datajack Build | -11 -10 -10 -8 -8 -6 -5 -4 -4 -4 -4 -4 -4 -3 ------- Run | Yrd Mat Sub Rec Scr Fac Fac Fac Was Fac Upp Upp Zhi Pro Slots Evolved 12 | . . . . . 8 2 2 . . . . . . Power 2 | . . . . . 1 . 1 . . . . . . Propulsion 5 | . . . . . 2 2 1 . . . . . . Utility 5 | . . . . . 5 . . . . . . . . Weapon . | . . . . . . . . . . . . . . Parts Attached 122 | 7 8 18 1 12 22 7 18 . 16 5 . 6 2 Power 19 | 1 1 4 . 3 2 3 3 . 1 . . 1 . Engine 13 | 1 1 3 . 3 2 2 1 . . . . . . Core 3 | . . 1 . . . 1 . . 1 . . . . Reactor 3 | . . . . . . . 2 . . . . 1 . Propulsion 37 | 2 3 5 . 4 1 3 5 . 9 2 . 3 . Treads 6 | 2 . 1 . 3 . . . . . . . . . Leg 8 | . . 2 . . . . . . 1 2 . 3 . Wheel 6 | . 3 2 . 1 . . . . . . . . . Hover 7 | . . . . . . . . . 7 . . . . Flight 10 | . . . . . 1 3 5 . 1 . . . . Utility 45 | 2 2 2 1 2 17 1 8 . 5 2 . 1 2 Device 18 | 1 . 1 . . 7 1 4 . 2 1 . . 1 Storage 6 | 1 2 . . 1 1 . 1 . . . . . . Processor 10 | . . . . . 6 . 2 . 1 1 . . . Hackware 5 | . . . . . 3 . 1 . 1 . . . . Protection 6 | . . 1 1 1 . . . . 1 . . 1 1 Artifact . | . . . . . . . . . . . . . . Weapon 21 | 2 2 7 . 3 2 . 2 . 1 1 . 1 . Energy Gun 7 | . . 3 . 1 1 . . . 1 1 . . . Energy Cannon 3 | . 1 . . . 1 . 1 . . . . . . Ballistic Gun 4 | 2 1 1 . . . . . . . . . . . Ballistic Cannon 2 | . . 2 . . . . . . . . . . . Launcher 2 | . . 1 . 1 . . . . . . . . . Special Weapon . | . . . . . . . . . . . . . . Impact Weapon . | . . . . . . . . . . . . . . Slashing Weapon 1 | . . . . 1 . . . . . . . . . Piercing Weapon 1 | . . . . . . . . . . . . 1 . Special Melee Weapon 1 | . . . . . . . 1 . . . . . . Unidentified Prototypes 7 | . . . . 1 . . . . 1 . . 3 2 Corrupted Parts 1 | . . . . . . . . . . 1 . . . System Corruption 2 | . . . . . . . . . . 2 . . . Parts Lost 44 | . 4 9 . . . 5 13 . 2 7 2 . 2 Power 8 | . . 2 . . . 2 1 . 1 2 . . . Propulsion 19 | . 1 3 . . . 1 7 . . 4 2 . 1 Utility 10 | . 1 . . . . 2 4 . 1 1 . . 1 Weapon 7 | . 2 4 . . . . 1 . . . . . . Highest Loss Streak 8 | . 2 4 . . . 3 8 . 1 6 2 . 2 To Critical Strikes . | . . . . . . . . . . . . . . Average Backups 11 | 3 8 11 15 14 7 9 8 5 8 8 9 9 8 Power . | . 1 1 2 . . . . 1 . . . . . Propulsion 1 | 2 2 1 2 1 1 1 . . . . . . . Utility 6 | . 3 6 7 6 2 6 6 4 6 7 7 7 6 Weapon 2 | . 1 1 3 5 2 . 1 . . . 2 1 1 Tool/Special . | . . . . . . . . . . . . . . Unused Backups 53 | 1 2 6 . 16 10 . 8 . 2 4 . . 4 Power 3 | . . 1 . . 2 . . . . . . . . Propulsion 5 | . 2 3 . . . . . . . . . . . Utility 30 | . . 2 . 10 4 . 5 . 2 3 . . 4 Weapon 13 | 1 . . . 6 3 . 2 . . 1 . . . Tool/Special 2 | . . . . . 1 . 1 . . . . . . Average Slot Usage (%) 87 | . 87 98 100 94 69 76 71 52 74 71 56 58 62 Engine 8 | . 14 6 14 11 7 6 1 . . . . . . Core 2 | . . 7 . . . 2 4 5 6 . . . . Treads 9 | . 13 13 . 18 . . . . . . . . . Leg 5 | . . 6 14 4 . . . . . 9 9 7 11 Wheel 4 | . 14 7 14 1 . . . . . . . . . Hover 1 | . . . . . . . . . 17 14 5 5 3 Flight 1 | . . . . . 4 13 15 5 1 . . . . Device 6 | . 2 13 5 . 14 10 12 15 12 7 5 5 4 Storage 10 | . 14 14 14 14 2 5 2 . 4 5 5 5 5 Processor 6 | . . . . . 18 25 20 21 14 18 21 21 18 Hackware 1 | . . . . . 6 5 1 . . 5 5 2 . Protection 5 | . . . 8 14 1 . . . 3 . . 2 3 Energy Gun 7 | . . 17 . 8 4 1 . . 2 4 . . 2 Ballistic Gun 2 | . 26 2 . . . . . . . . . . . Ballistic Cannon 9 | . . 5 27 18 . . . . . . . . . Slashing Weapon 1 | . . . . . 4 5 4 5 5 5 5 5 5 Peak Build Rating 127 | 7 8 21 21 40 99 114 127 51 101 91 63 90 92 Average Rating 40 | 5 7 15 21 26 90 104 99 51 86 83 62 69 76 On Entrance 48 | . 7 7 19 21 27 98 102 51 51 91 63 49 90 Naked Turns . | . . . . . . . . . . . . . . Heaviest Build 84 | 13 48 57 58 84 33 38 51 15 52 38 15 37 53 Greatest Support 90 | 40 40 40 10 43 33 48 51 16 74 74 50 90 90 Greatest Overweight (x) 5 | . 4 5 5 5 2 . 2 . . 4 . . . Average Overweight (x) . | . 1 . 5 1 . . . . . . . . . Largest Inventory Capacity 20 | 8 20 20 20 20 15 10 15 5 10 10 10 10 10 Average Capacity 15 | 7 17 16 20 19 7 10 8 5 9 10 10 10 10 Most Carried 20 | 7 11 19 20 20 15 10 12 5 10 10 10 10 10 Average Carried 13 | 4 8 12 19 18 7 9 8 5 8 9 10 9 9 Final Capacity 20 | 8 15 20 20 15 10 10 10 5 10 10 10 10 10 Final Carried 20 | 6 6 18 20 15 10 10 10 5 8 10 10 10 9 Class Distribution -------------------- 61% | Mutant 14% | Scavenger-Mutant 7% | Scout 4% | Assassin 4% | Scavenger-Assassin Dominant Class ---------------- Mutant | -10/Materials Scavenger-Mutant | -10/Subcaves Mutant | -8/Recycling Mutant | -8/Scraptown Mutant | -6/Factory Scout | -5/Factory Scout | -4/Factory Mutant | -4/Waste Scout | -4/Factory Scavenger-Assassin | -4/Upper Caves Assassin | -4/Upper Caves Gladiator | -4/Zhirov Gladiator | -3/Proximity Caves Resources | -11 -10 -10 -8 -8 -6 -5 -4 -4 -4 -4 -4 -4 -3 ----------- Run | Yrd Mat Sub Rec Scr Fac Fac Fac Was Fac Upp Upp Zhi Pro Matter Collected 2054 | 206 250 270 . 162 458 104 168 . 145 259 32 . . Remotely . | . . . . . . . . . . . . . . Salvage Created 2494 | 47 471 384 . . 604 175 324 . 167 167 138 . 17 Parts 141 | 6 26 32 . . 28 7 13 . 16 9 1 . 3 Haulers Intercepted 4 | . 1 . . . 2 . 1 . . . . . . Recyclers Shooed 2 | 1 . . . . . . . . 1 . . . . Parts Field Recycled . | . . . . . . . . . . . . . . Retrieved Matter . | . . . . . . . . . . . . . . Parts Self-Destructed 19 | . . 9 . . . . . . . 6 . . 4 Prevented . | . . . . . . . . . . . . . . Kills | -11 -10 -10 -8 -8 -6 -5 -4 -4 -4 -4 -4 -4 -3 ------- Run | Yrd Mat Sub Rec Scr Fac Fac Fac Was Fac Upp Upp Zhi Pro Combat Hostiles Destroyed 44 | . 12 12 . . 10 4 1 . 2 2 . . 1 Melee 17 | . . . . . 8 4 1 . 1 2 . . 1 Guns 22 | . 10 9 . . 2 . . . 1 . . . . Cannons 3 | . 2 1 . . . . . . . . . . . AOE 2 | . . 2 . . . . . . . . . . . Classes Destroyed 16 | 1 4 2 . . 2 1 3 . 1 1 . . 1 Worker 1 | . . . . . 1 . . . . . . . . Builder 1 | . . . . . . . . . 1 . . . . Tunneler 2 | 2 . . . . . . . . . . . . . Hauler 4 | . 1 . . . 2 . 1 . . . . . . Recycler 1 | . . . . . . . 1 . . . . . . Operator 2 | . . . . . . . 1 . 1 . . . . Turret 2 | . . 2 . . . . . . . . . . . Watcher 4 | . 1 . . . 2 1 . . . . . . . Swarmer 15 | . 3 5 . . 7 . . . . . . . . Cutter 3 | . . . . . . 3 . . . . . . . Saboteur 1 | . . . . . . . . . . . . . 1 Grunt 12 | . 9 . . . 2 1 . . . . . . . Sentry 1 | . . . . . . . 1 . . . . . . Hunter 2 | . . . . . . . . . . 2 . . . Programmer 3 | . . . . . 1 . . . 2 . . . . Subdweller 7 | . . 7 . . . . . . . . . . . Decomposer 1 | . . . . . . . . . . 1 . . . Packrat 2 | . . . . . . . . . . . 2 . . Best Kill Streak 5 | 1 5 4 . . 4 3 1 . 3 2 . . 1 Combat Bots Only 5 | . 5 3 . . 3 3 1 . 2 2 . . 1 Max Kills in Single Turn 2 | 1 2 1 . . 1 1 1 . 1 1 1 . 1 Gunslinging 1 | . 1 . . . . . . . . . . . . Exploded 1 | . . 1 . . . . . . . . . . . Melee 1 | . . . . . 1 1 1 . 1 1 . . 1 Uniques/NPCs Destroyed . | . . . . . . . . . . . . . . Combat | -11 -10 -10 -8 -8 -6 -5 -4 -4 -4 -4 -4 -4 -3 -------- Run | Yrd Mat Sub Rec Scr Fac Fac Fac Was Fac Upp Upp Zhi Pro Hostile Shots Fired 744 | . 77 78 . . 141 111 40 . 56 87 44 . 110 Missed 286 | . 19 27 . . 62 40 17 . 25 36 17 . 43 Hits 458 | . 58 51 . . 79 71 23 . 31 51 27 . 67 Melee 23 | . . . . . 1 20 . . . 1 . . 1 Projectile 435 | . 58 51 . . 78 51 23 . 31 50 27 . 66 AOE 11 | . . 5 . . 3 1 2 . . . . . . Critical Strikes 22 | . 1 . . . 2 7 4 . 3 3 . . 2 Part Disruptions 1 | . . . . . 1 . . . . . . . . Damage Taken 9188 | . 674 1205 . . 1212 1256 1269 49 669 932 440 . 1482 Core 1710 | . 84 158 . . 158 169 227 . 115 218 199 . 382 Absorbed by Shields 177 | . . . . . . 177 . . . . . . . Redirected to Shielding 104 | . . . . . . . . . . . . . 104 Regen/Repaired (Parts) 479 | . . . . 479 . . . . . . . . . Core Remaining (%) 66 | 100 . . . 3 81 83 . . . . . . . Volleys Fired 139 | 7 47 57 . . 19 1 1 . 1 . . . 6 Largest 2 | 2 2 2 . . 1 1 1 . 1 . . . 1 Hottest 120 | 40 80 120 . . 75 39 98 . 65 . . . 94 Shots Fired 235 | 14 91 100 . . 19 1 1 . 2 2 . . 5 Gun 208 | 14 85 81 . . 19 . . . 2 2 . . 5 Cannon 19 | . 6 12 . . . . 1 . . . . . . Launcher 8 | . . 7 . . . 1 . . . . . . . Special . | . . . . . . . . . . . . . . Kinetic 123 | 14 85 24 . . . . . . . . . . . Thermal 108 | . 6 76 . . 19 . 1 . . 1 . . 5 Explosive 1 | . . . . . . 1 . . . . . . . Electromagnetic 3 | . . . . . . . . . 2 1 . . . Robot Hit Streak 13 | 5 8 13 . . 4 . . . 3 4 . . . Robot Miss Streak 6 | 3 4 4 . . 6 . . . . 1 . . 6 Penetration Max . | . . . . . . . . . . . . . . Secondary Targets 6 | . 4 2 . . . . . . . . . . . Max Gunslinging Chain 1 | . 1 1 . . . . . . . . . . . Shots Hit Robots 187 | 8 59 46 . . 29 10 14 . 7 9 5 . . Core Hits 94 | 4 30 23 . . 14 7 5 . 6 5 . . . Critical Kills 2 | . 2 . . . . . . . . . . . . Critical Parts Destroyed . | . . . . . . . . . . . . . . Critical Strikes 4 | . 2 . . . 2 . . . . . . . . Burn 2 | . . . . . 2 . . . . . . . . Destroy 2 | . 2 . . . . . . . . . . . . Melee Attacks 187 | . . . . . 43 41 47 . 33 13 8 . 2 Impact . | . . . . . . . . . . . . . . Slashing 187 | . . . . . 43 41 47 . 33 13 8 . 2 Piercing . | . . . . . . . . . . . . . . Sneak Attacks 10 | . . . . . 4 1 2 . 1 1 1 . . Combat Hostiles 2 | . . . . . 1 1 . . . . . . . Follow-up Attacks 3 | . . . . . 1 . . . . 1 1 . . Damage Inflicted 5354 | 59 561 1213 . . 1301 505 775 . 321 367 252 . . Guns 1530 | 59 492 756 . . 172 . . . 28 23 . . . Cannons 159 | . 69 90 . . . . . . . . . . . Explosions 391 | . . 367 . . . 24 . . . . . . . Melee 3274 | . . . . . 1129 481 775 . 293 344 252 . . Ramming . | . . . . . . . . . . . . . . Kinetic 1008 | 59 492 457 . . . . . . . . . . . Thermal 997 | . 69 756 . . 172 . . . . . . . . Explosive 24 | . . . . . . 24 . . . . . . . Electromagnetic 51 | . . . . . . . . . 28 23 . . . Impact . | . . . . . . . . . . . . . . Slashing 3274 | . . . . . 1129 481 775 . 293 344 252 . . Piercing . | . . . . . . . . . . . . . . Highest Corruption 37 | . . . . . 1 2 26 33 34 37 37 37 37 Average Corruption 31 | . . . . . 1 1 25 31 33 35 37 37 37 Corruption Purged . | . . . . . . . . . . . . . . Corruption Blocked . | . . . . . . . . . . . . . . Effects 134 | . . . . . 1 . 11 6 35 35 26 8 12 Message Errors 24 | . . . . . . . 4 . 6 6 4 2 2 Matter Fused 23 | . . . . . . . 2 1 8 4 5 1 2 Heat Flow Errors 19 | . . . . . 1 . . . 2 4 9 2 1 Energy Discharges 16 | . . . . . . . . . 6 6 3 1 . Parts Rejected 3 | . . . . . . . . . 1 . 1 . 1 Parts Fused 2 | . . . . . . . . . 1 1 . . . Data Loss (minor) 21 | . . . . . . . 3 2 3 6 4 1 2 Data Loss (major) 4 | . . . . . . . . . . 3 . . 1 Misfires 3 | . . . . . . . . . 1 2 . . . Alerts 2 | . . . . . . . . . 1 . . 1 . Misdirections 16 | . . . . . . . 2 3 6 3 . . 2 Weapon Failures 1 | . . . . . . . . . . . . . 1 Overload Shots . | . . . . . . . . . . . . . . Overflow Damage 394 | . . 22 . . 176 . . . . 53 143 . . Projectiles . | . . . . . . . . . . . . . . Explosions 22 | . . 22 . . . . . . . . . . . Melee 372 | . . . . . 176 . . . . 53 143 . . Knockbacks . | . . . . . . . . . . . . . . Impact . | . . . . . . . . . . . . . . Kinetic . | . . . . . . . . . . . . . . Secondary . | . . . . . . . . . . . . . . Self-Inflicted Damage 31 | . . 9 . . . 22 . . . . . . . Shots 2 | . . 1 . . . 1 . . . . . . . Rammed . | . . . . . . . . . . . . . . Targets Rammed . | . . . . . . . . . . . . . . Kicked . | . . . . . . . . . . . . . . Crushed . | . . . . . . . . . . . . . . Highest Temperature 270 | . 168 114 . . 218 47 270 . 258 216 249 201 138 Average Temperature 76 | . 38 32 . . 126 19 101 . 66 92 112 97 43 Received Heat Transfer 1246 | . 372 270 . . 105 90 114 . 42 117 9 . 127 Siege Activations . | . . . . . . . . . . . . . . Martial Activations . | . . . . . . . . . . . . . . Shielding Activations . | . . . . . . . . . . . . . . Robots Disrupted . | . . . . . . . . . . . . . . Combat Hostiles . | . . . . . . . . . . . . . . Robots Corrupted . | . . . . . . . . . . . . . . Combat Hostiles . | . . . . . . . . . . . . . . Parts Fried . | . . . . . . . . . . . . . . Impact Corruptions . | . . . . . . . . . . . . . . Robots Melted . | . . . . . . . . . . . . . . Combat Hostiles . | . . . . . . . . . . . . . . Parts Melted 3 | . . 2 . . 1 . . . . . . . . Heat Transferred 1758 | . 148 1010 . . 600 . . . . . . . . Parts Sabotaged 2 | . . . . . . . . . . . . . 2 Parts Stolen . | . . . . . . . . . . . . . . Parts Stripped . | . . . . . . . . . . . . . . Power Chain Reactions . | . . . . . . . . . . . . . . Alert | -11 -10 -10 -8 -8 -6 -5 -4 -4 -4 -4 -4 -4 -3 ------- Run | Yrd Mat Sub Rec Scr Fac Fac Fac Was Fac Upp Upp Zhi Pro Maximum Alert Level 2 | . . . . . 2 2 1 . . . . . . Low Security (%) 74 | 100 100 . 100 . 36 33 36 100 100 . . . . Level 1 20 | . . . . . 40 55 63 . . . . . . Level 2 5 | . . . . . 22 10 . . . . . . . Level 3 . | . . . . . . . . . . . . . . Level 4 . | . . . . . . . . . . . . . . Level 5 . | . . . . . . . . . . . . . . High Security . | . . . . . . . . . . . . . . Max Security . | . . . . . . . . . . . . . . Peak Influence 531 | 5 112 . 43 . 530 531 274 18 90 . . . . Initial 267 | . . . 43 . . 149 267 18 . . . . . Average 101 | . 33 . 2 . 246 254 198 9 19 . . . . Influence Increases 2497 | 10 344 165 17 . 790 697 155 . 219 50 . . 50 Destroy 0b10 Robot/C 900 | . 240 140 . . 200 200 20 . 40 40 . . 20 Destroy 0b10 Robot/NC 85 | 10 10 . . . 25 15 15 . 10 . . . . Destroy Leader 188 | . 54 10 . . 38 54 12 . 10 10 . . . Successful Hack 64 | . 10 . 17 . 37 . . . . . . . . Disable Machine 135 | . . . . . 90 15 15 . 15 . . . . Destroy Structure 180 | . . . . . 10 68 48 . 54 . . . . Partial Spotted 45 | . . . . . . 30 15 . . . . . . Lose Combat Pursuer 900 | . 30 15 . . 390 315 30 . 90 . . . 30 Influence Decreases 2477 | 10 274 144 108 . 483 458 647 54 129 140 . . 30 Entered New Map 589 | . . 34 48 . . 158 279 36 . 34 . . . Time Decay 1358 | 10 254 110 60 . 293 170 238 18 119 56 . . 30 Search Patrol Dispatched 150 | . . . . . 150 . . . . . . . . Lost Part 260 | . 20 . . . . 50 130 . 10 50 . . . Lost Ally 120 | . . . . . 40 80 . . . . . . . Squads Dispatched 34 | . 3 . . . 10 11 4 . 5 . . . 1 Investigation 20 | . 1 . . . 5 8 2 . 4 . . . . Extermination 5 | . . . . . 2 1 1 . 1 . . . . Reinforcement 8 | . 2 . . . 3 2 1 . . . . . . Assault 1 | . . . . . . . . . . . . . 1 Garrison . | . . . . . . . . . . . . . . Intercept . | . . . . . . . . . . . . . . Searches Triggered 1 | . . . . . 1 . . . . . . . . Construction Impeded 1 | . . . . . . 1 . . . . . . . Haulers Reinforced . | . . . . . . . . . . . . . . Active Scanning Responses . | . . . . . . . . . . . . . . Cargo Convoy Interrupts . | . . . . . . . . . . . . . . Stealth | -11 -10 -10 -8 -8 -6 -5 -4 -4 -4 -4 -4 -4 -3 --------- Run | Yrd Mat Sub Rec Scr Fac Fac Fac Was Fac Upp Upp Zhi Pro Distress Signals 6 | . 1 . . . 2 1 1 . 1 . . . . Communications Jammed . | . . . . . . . . . . . . . . Distress Signals . | . . . . . . . . . . . . . . Times Spotted 194 | . 23 20 . . 46 46 9 6 16 6 3 . 19 Peak Tracking Total 20 | . 5 4 . . 12 20 4 6 8 4 3 . 17 Tactical Retreats 22 | . 2 2 . . 8 5 1 . 3 . . . 1 Traps | -11 -10 -10 -8 -8 -6 -5 -4 -4 -4 -4 -4 -4 -3 ------- Run | Yrd Mat Sub Rec Scr Fac Fac Fac Was Fac Upp Upp Zhi Pro Traps Triggered 9 | . . 2 . . . 4 2 . 1 . . . . Indirectly . | . . . . . . . . . . . . . . Trap Hack Attempts . | . . . . . . . . . . . . . . Triggered . | . . . . . . . . . . . . . . Disarmed . | . . . . . . . . . . . . . . Reprogrammed . | . . . . . . . . . . . . . . Reused . | . . . . . . . . . . . . . . Traps Extracted . | . . . . . . . . . . . . . . Installed . | . . . . . . . . . . . . . . Triggered . | . . . . . . . . . . . . . . Machines | -11 -10 -10 -8 -8 -6 -5 -4 -4 -4 -4 -4 -4 -3 ---------- Run | Yrd Mat Sub Rec Scr Fac Fac Fac Was Fac Upp Upp Zhi Pro Machines Disabled 14 | . . 5 . . 6 1 1 . 1 . . . . Max in Single Turn 2 | . . 2 . . 1 1 1 . 1 . . . . Machines Repaired . | . . . . . . . . . . . . . . Machines Dismantled . | . . . . . . . . . . . . . . Machines Sabotaged . | . . . . . . . . . . . . . . Overloaded Fab Kills . | . . . . . . . . . . . . . . Hacking | -11 -10 -10 -8 -8 -6 -5 -4 -4 -4 -4 -4 -4 -3 --------- Run | Yrd Mat Sub Rec Scr Fac Fac Fac Was Fac Upp Upp Zhi Pro Machines Accessed 55 | . 3 1 5 5 13 11 4 . 6 1 2 4 . Terminals 22 | . 2 . 4 . 7 4 3 . 2 . . . . Fabricators 2 | . . . . . 1 . . . 1 . . . . Repair Stations . | . . . . . . . . . . . . . . Recycling Units 16 | . 1 . 1 . 4 6 1 . 3 . . . . Scanalyzers . | . . . . . . . . . . . . . . Garrison Access 2 | . . . . . 1 1 . . . . . . . Total Hacks 139 | . 7 1 15 19 36 19 8 . 9 1 7 17 . Successful 88 | . 5 1 9 19 14 8 3 . 4 1 7 17 . Failed 51 | . 2 . 6 . 22 11 5 . 5 . . . . Catastrophic 8 | . . . . . 4 1 1 . 2 . . . . Database Lockouts . | . . . . . . . . . . . . . . Manual 53 | . 3 . 13 . 17 9 4 . 7 . . . . Terminals 59 | . 6 . 13 . 21 9 7 . 3 . . . . Fabricators 2 | . . . . . 1 . . . 1 . . . . Repair Stations . | . . . . . . . . . . . . . . Recycling Units 29 | . 1 . 2 . 11 9 1 . 5 . . . . Scanalyzers . | . . . . . . . . . . . . . . Garrison Access 4 | . . . . . 3 1 . . . . . . . Terminal Hacks 62 | . 2 1 4 19 7 3 1 . . 1 7 17 . Record 30 | . 1 . . 18 . . . . . . 6 5 . Part Schematic 4 | . . . . . . . . . . . . 4 . Robot Analysis 4 | . . . . . . . . . . . . 4 . Prototype ID Bank 4 | . . . . . . . . . . . . 4 . Open Door 3 | . . . . 1 . . . . . 1 1 . . Open DSF 1 | . . . . . . 1 . . . . . . . Level Access Points 1 | . . . . . 1 . . . . . . . . Branch Access Points 1 | . . . . . . . 1 . . . . . . Emergency Access Points 1 | . . . . . 1 . . . . . . . . Alert Level 2 | . . . . . 1 1 . . . . . . . Locate Traps 1 | . . . . . 1 . . . . . . . . Patrol Status 1 | . . . . . 1 . . . . . . . . Recall Investigation 1 | . . . . . . 1 . . . . . . . Registered Components 1 | . . . . . 1 . . . . . . . . Zone Layout 6 | . 1 . 4 . 1 . . . . . . . . Proto ID Catalog 1 | . . 1 . . . . . . . . . . . Fabricator Hacks 2 | . . . . . 1 . . . 1 . . . . Network Status 2 | . . . . . 1 . . . 1 . . . . Repair Station Hacks . | . . . . . . . . . . . . . . Recycling Unit Hacks 5 | . 1 . 2 . 2 . . . . . . . . Report Inventory 4 | . 1 . 1 . 2 . . . . . . . . Retrieve Components 1 | . . . 1 . . . . . . . . . . Scanalyzer . | . . . . . . . . . . . . . . Garrison Access Hacks . | . . . . . . . . . . . . . . Unauthorized Hacks 19 | . 2 . 3 . 4 5 2 . 3 . . . . Terminals 6 | . 2 . 3 . . . 1 . . . . . . Botnet 6 | . 2 . 3 . . . 1 . . . . . . Fabricators . | . . . . . . . . . . . . . . Repair Stations . | . . . . . . . . . . . . . . Recycling Units 13 | . . . . . 4 5 1 . 3 . . . . Fedlink 11 | . . . . . 3 4 1 . 3 . . . . Scrapoids 2 | . . . . . 1 1 . . . . . . . Scanalyzers . | . . . . . . . . . . . . . . Garrison Access . | . . . . . . . . . . . . . . Data Cores Recovered 1 | . . . . . . . . . 1 . . . . Used . | . . . . . . . . . . . . . . Hacking Detections 26 | . 2 . 3 . 9 5 2 . 5 . . . . Full Trace Events 8 | . . . 3 . 1 3 . . 1 . . . . Feedback Events 1 | . . . . . . 1 . . . . . . . Corruption 1 | . . . . . . 1 . . . . . . . Feedback Blocked . | . . . . . . . . . . . . . . Robot Schematics Acquired . | . . . . . . . . . . . . . . Robots Built . | . . . . . . . . . . . . . . Authchips . | . . . . . . . . . . . . . . Time . | . . . . . . . . . . . . . . Total Robot Build Rating . | . . . . . . . . . . . . . . Part Schematics Acquired 4 | . . . . . . . . . . . . 4 . Parts Built . | . . . . . . . . . . . . . . Authchips . | . . . . . . . . . . . . . . Time . | . . . . . . . . . . . . . . Total Part Build Rating . | . . . . . . . . . . . . . . Parts Repaired . | . . . . . . . . . . . . . . Time . | . . . . . . . . . . . . . . Parts Recycled . | . . . . . . . . . . . . . . Recycled Matter . | . . . . . . . . . . . . . . Retrieved Matter . | . . . . . . . . . . . . . . Retrieved Components 2 | . . . 2 . . . . . . . . . . Parts Scanalyzed . | . . . . . . . . . . . . . . Part Schematics Acquired . | . . . . . . . . . . . . . . Parts Damaged . | . . . . . . . . . . . . . . Bothacking | -11 -10 -10 -8 -8 -6 -5 -4 -4 -4 -4 -4 -4 -3 ------------ Run | Yrd Mat Sub Rec Scr Fac Fac Fac Was Fac Upp Upp Zhi Pro Used RIF Installer . | . . . . . . . . . . . . . . Robots Hacked . | . . . . . . . . . . . . . . Non-combat . | . . . . . . . . . . . . . . Combat . | . . . . . . . . . . . . . . Robot Hacks Applied . | . . . . . . . . . . . . . . Relay Couplers Released . | . . . . . . . . . . . . . . Fabnet Peak Effective % . | . . . . . . . . . . . . . . Robots Rewired . | . . . . . . . . . . . . . . Allies Hacked . | . . . . . . . . . . . . . . Hacks Repelled . | . . . . . . . . . . . . . . Allies | -11 -10 -10 -8 -8 -6 -5 -4 -4 -4 -4 -4 -4 -3 -------- Run | Yrd Mat Sub Rec Scr Fac Fac Fac Was Fac Upp Upp Zhi Pro Total Allies 12 | . . . . . 5 5 . . . . 2 . . Largest Group 5 | . . . . . 5 5 . . . . 2 . . Highest-Rated Group 238 | . . . . . 140 238 . . . . 84 . . Highest-Rated Ally 50 | . . . . . 28 50 . . . . 46 . . Total Orders . | . . . . . . . . . . . . . . Ally Attacks 56 | . . . . . 7 45 . . . . 4 . . Total Damage 1164 | . . . . . 123 911 . . . . 130 . . Kills 8 | . . . . . . 8 . . . . . . . Allies Corrupted . | . . . . . . . . . . . . . . Allies Melted . | . . . . . . . . . . . . . . Intel | -11 -10 -10 -8 -8 -6 -5 -4 -4 -4 -4 -4 -4 -3 ------- Run | Yrd Mat Sub Rec Scr Fac Fac Fac Was Fac Upp Upp Zhi Pro Active Infowar (turns) 6807 | 8 148 2661 344 . 715 357 511 55 529 644 483 138 214 Optics 2952 | . . . . . 47 357 511 55 529 618 483 138 214 Sensors 2604 | . . . . . 485 189 373 . 402 495 413 53 194 Terrain 3005 | . . 2661 344 . . . . . . . . . . Seismic 156 | 8 148 . . . . . . . . . . . . Decoding 2568 | . . . . . 715 357 332 . . 329 483 138 214 Machine Analysis 250 | . . . . . . . 66 55 129 . . . . Jamming 23 | . . . . . 23 . . . . . . . . ECM 1 | . . . . . . . . . 1 . . . . Robot Analysis Total 4 | . . . . . . . . . . . . 4 . Derelict Logs Recovered 7 | . . 1 . 5 . . . . . 1 . . . Drone Launches . | . . . . . . . . . . . . . . Drone Recoveries . | . . . . . . . . . . . . . . Decoded 0b10 Intel 36 | . . . . . 16 7 13 . . . . . . Traps 2 | . . . . . . 1 1 . . . . . . Emergency Access 2 | . . . . . 1 1 . . . . . . . Items 25 | . . . . . 12 3 10 . . . . . . Machines 5 | . . . . . 2 2 1 . . . . . . Patrols 2 | . . . . . 1 . 1 . . . . . . Exploration | -11 -10 -10 -8 -8 -6 -5 -4 -4 -4 -4 -4 -4 -3 ------------- Run | Yrd Mat Sub Rec Scr Fac Fac Fac Was Fac Upp Upp Zhi Pro Turns Passed 11999 | 126 769 2694 967 3793 718 357 511 55 529 645 483 138 214 Spaces Moved 8067 | 64 413 1506 202 1282 1227 633 992 137 778 244 278 154 157 Core 17 | 14 . . . . 2 . . . . 1 . . . Treads 2007 | 50 142 737 . 1078 . . . . . . . . . Legs 1266 | . . 214 202 201 . . . . . 185 252 55 157 Wheels 829 | . 271 555 . 3 . . . . . . . . . Hover 809 | . . . . . . . . . 626 58 26 99 . Flight 3139 | . . . . . 1225 633 992 137 152 . . . . Fastest Speed 28 | 50 105 105 470 110 40 28 29 40 32 44 60 60 120 Average Speed 123 | 135 132 161 470 279 40 32 32 40 48 110 114 81 120 Slowest Speed 490 | 160 240 470 470 490 150 34 200 40 71 250 120 120 120 Overloaded Moves 73 | . . . . . . 73 . . . . . . . Propulsion Burnouts . | . . . . . . . . . . . . . . Robots Hopped 18 | . . . . . 3 13 2 . . . . . . Potential Cave-ins 5 | . . . . . . 2 3 . . . . . . Cave-ins Triggered 2 | . . . . . . . 2 . . . . . . Teleports 1 | . . . . . . . . . . . . . 1 Exploration Rate (%) 49 | 4 66 91 43 86 34 23 22 97 21 46 59 63 40 Regions Visited 13 Branch Regions 7 Pre-discovered Areas 8 | . . . . 3 1 . . . . . 1 3 . Known Exits Taken 6 | . . . . . 1 1 . . 1 1 1 1 . Unknown Exits Taken 5 | 1 1 1 1 1 . . . . . . . . . Scrap Searched 8 | . . 3 . 3 . . . . . 1 1 . . Spaces Dug 98 | . . 12 . . 10 21 28 . 27 . . . . Terrain Destroyed 142 | . . 46 . . 10 27 28 . 27 . . . 4 Melee 85 | . . . . . 10 21 27 . 27 . . . . Projectile 5 | . . . . . . . 1 . . . . . 4 AOE 52 | . . 46 . . . 6 . . . . . . . Terrain Rammed . | . . . . . . . . . . . . . . Walls Destroyed . | . . . . . . . . . . . . . . Machines Disabled . | . . . . . . . . . . . . . . Actions | -11 -10 -10 -8 -8 -6 -5 -4 -4 -4 -4 -4 -4 -3 --------- Run | Yrd Mat Sub Rec Scr Fac Fac Fac Was Fac Upp Upp Zhi Pro Total 9638 | 92 555 1677 221 1509 1381 710 1105 136 881 602 431 164 174 Wait 777 | . 67 48 15 140 13 . 12 . 11 325 146 . . Move 8023 | 63 412 1505 201 1281 1220 611 987 136 777 243 277 153 157 Hop 13 | . . . . . 3 8 2 . . . . . . Pick Up 160 | 14 8 32 2 31 27 7 9 . 20 8 . 2 . Fast Attach 37 | . . . . . 10 2 10 . 5 2 1 6 1 Attach 79 | 7 5 11 . 8 12 6 7 . 15 4 . 1 3 Detach 16 | . 1 . . 1 2 . 5 . 4 1 . . 2 Swap 50 | . 10 10 3 12 2 . 8 . 3 1 . . 1 Drop 126 | 1 5 14 . 36 31 1 16 . 12 6 . 2 2 Fire 139 | 7 47 57 . . 19 1 1 . 1 . . . 6 Melee 184 | . . . . . 42 41 47 . 33 12 7 . 2 Ram . | . . . . . . . . . . . . . . Kick . | . . . . . . . . . . . . . . Crush . | . . . . . . . . . . . . . . Escape Stasis 34 | . . . . . . 33 1 . . . . . . Rewire . | . . . . . . . . . . . . . . Trap . | . . . . . . . . . . . . . . Miscellaneous . | . . . . . . . . . . . . . . Route ------- -11/Scrapyard -10/Materials (discovered 3 exits: [*Mat x2] / *Sub) -10/Subcaves (discovered 3 exits: [*Mat x2] / *Rec) -8/Recycling (discovered 2 exits: Fac / *Scr) -8/Scraptown (discovered 2 exits: *Fac x2) -6/Factory (discovered 5 exits: *Fac x4 / *Low) -5/Factory -4/Factory (discovered 4 exits: *Res x2 / Upp x2) -4/Waste -4/Factory -4/Upper Caves -4/Upper Caves -4/Zhirov -3/Proximity Caves History --------- Turn | Location | Event 6 | -11/Scrapyard | Discovered new exit (range 14) 127 | -11/Scrapyard | Entered Materials 246 | -10/Materials | Discovered new exit (range 16) 307 | -10/Materials | Build established: Mutant 584 | -10/Materials | Discovered new exit (range 15) 627 | -10/Materials | Derelicts attacked the area 885 | -10/Materials | Discovered new exit (range 10) 896 | -10/Materials | Entered Subcaves 1309 | -10/Subcaves | Lost 3 parts (1p1n1w) 1564 | -10/Subcaves | Build established: Scavenger-Mutant 2435 | -10/Subcaves | Discovered new exit (range 8) 2527 | -10/Subcaves | Ambushed by Subdweller buried in earth 2527 | -10/Subcaves | Ambushed by Subdweller buried in earth 2539 | -10/Subcaves | Core integrity fell below 50% 2876 | -10/Subcaves | Learned Materials emergency access door positions 2926 | -10/Subcaves | Core integrity fell below 20% 2930 | -10/Subcaves | Discovered new exit (range 5) 2949 | -10/Subcaves | Lost 4 parts (1p1n2w) 3063 | -10/Subcaves | Visited 4L-MR0's lab 3079 | -10/Subcaves | Found Flightbrick 3302 | -10/Subcaves | Build established: Mutant 3537 | -10/Subcaves | Discovered new exit (range 10) 3590 | -10/Subcaves | Entered Recycling 3915 | -8/Recycling | Discovered new exit (range 17) 4449 | -8/Recycling | Scanned before Scraplab entrance 4514 | -8/Recycling | Entered Scraplab 4552 | -8/Recycling | Discovered new exit (range 2) 4557 | -8/Recycling | Entered Scraptown 4915 | -8/Scraptown | Scanned Subdweller tech in exchange for log data 4928 | -8/Scraptown | Learned location of 1 exit from Factory 4933 | -8/Scraptown | Learned Research stockpile data 4937 | -8/Scraptown | Learned location of 1 exit from Research 4942 | -8/Scraptown | Learned Research garrison access intel 4947 | -8/Scraptown | Learned location of Testing (-3) 5003 | -8/Scraptown | Discovered new exit (range 11) 5627 | -8/Scraptown | Heard Great Nut preacher, LISTEN AND RECITE! 6073 | -8/Scraptown | Visited UFD Registry 6073 | -8/Scraptown | Registered with UFD as "Gaussbrain" 6107 | -8/Scraptown | Visited CR-KLE's Repair Center 6129 | -8/Scraptown | CR-KLE repaired 7 parts 6189 | -8/Scraptown | Visited Fellowship of the Rings 6204 | -8/Scraptown | Visited Assassins FH 6253 | -8/Scraptown | Visited Cyclists 6292 | -8/Scraptown | Entered Cyclist Reading Room 6302 | -8/Scraptown | Learned location of Zion (-6) 6344 | -8/Scraptown | Visited Red Mages 6439 | -8/Scraptown | Visited Spacefarers 6483 | -8/Scraptown | Visited Comm Corps 6899 | -8/Scraptown | Visited Sword Containment 6979 | -8/Scraptown | Visited LU-1G1's Boring Crew 7060 | -8/Scraptown | Delivered Scrap Shield to a Scientist 7121 | -8/Scraptown | Visited Scrapoid Research Area 7158 | -8/Scraptown | Visited Scrap Suit Storage 7189 | -8/Scraptown | Visited A0-MCA Data Center 7216 | -8/Scraptown | Visited Modified Component R&D 7379 | -8/Scraptown | Visited Abandonware Association 7406 | -8/Scraptown | Learned abandonware demo "KABOOM.EXE" 7470 | -8/Scraptown | Visited Supply Room 7906 | -8/Scraptown | Given a B- rating by A0-MCA 7913 | -8/Scraptown | Found A0-MCA's Component Scanner 8266 | -8/Scraptown | Met Optimus 8266 | -8/Scraptown | Accepted into 0bPrime 8346 | -8/Scraptown | Discovered new exit (range 3) 8350 | -8/Scraptown | Entered Factory 8350 | -6/Factory | Evolved 8 slots: Power x1, Propulsion x2, Utility x5 8351 | -6/Factory | Identified exit to Factory 8353 | -6/Factory | Attached Flightbrick, gained temporary slots: Utility x3 8736 | -6/Factory | Loaded intel: 8 recycling unit locations 8837 | -6/Factory | Learned location of Protoforge (-2) 8938 | -6/Factory | Scrapoids reinforcements arrived? 9002 | -6/Factory | Discovered new exit (range 5) 9006 | -6/Factory | Identified exit to Lower Caves 9050 | -6/Factory | Search patrols dispatched 9068 | -6/Factory | Entered another Factory area 9068 | -5/Factory | Evolved 2 slots: Propulsion x2 9075 | -5/Factory | Identified exit to DSF 9095 | -5/Factory | Loaded intel: 8 recycling unit locations 9285 | -5/Factory | Scrapoids reinforcements arrived? 9288 | -5/Factory | Lost 3 parts (1p1n1u) 9415 | -5/Factory | Discovered new exit (range 8) 9417 | -5/Factory | Identified exit to Factory 9425 | -5/Factory | Entered another Factory area 9425 | -4/Factory | Evolved 2 slots: Power x1, Propulsion x1 9439 | -4/Factory | Identified exit to Upper Caves 9572 | -4/Factory | Discovered new exit (range 21) 9655 | -4/Factory | Discovered new exit (range 14) 9658 | -4/Factory | Identified exit to Research 9727 | -4/Factory | Spotted B-86 Titan 9752 | -4/Factory | Crushed by falling debris 9753 | -4/Factory | System corruption reached 10% 9757 | -4/Factory | Crushed by falling debris 9788 | -4/Factory | Lost 8 parts (1p4n3u) 9849 | -4/Factory | Build established: Scout 9896 | -4/Factory | Loaded intel: 8 recycling unit locations 9936 | -4/Factory | Sucked down chute 9936 | -4/Factory | Entered Waste 9945 | -4/Waste | Spotted C-40 Crusher 9947 | -4/Waste | Spotted C-40 Crusher 9951 | -4/Waste | EMP discharged 9951 | -4/Waste | System corruption reached 30% 9951 | -4/Waste | Spotted C-40 Crusher 9958 | -4/Waste | Spotted C-40 Crusher 9958 | -4/Waste | Spotted C-40 Crusher 9965 | -4/Waste | Lost 5 parts (3n1u1w) 9981 | -4/Waste | Spotted C-40 Crusher 9987 | -4/Waste | Discovered new exit (range 10) 9990 | -4/Waste | Identified exit to Factory 9991 | -4/Waste | Entered Factory 10111 | -4/Factory | Loaded intel: 8 recycling unit locations 10254 | -4/Factory | Discovered exit to Upper Caves (range 20) 10520 | -4/Factory | Entered Upper Caves 10522 | -4/Upper Caves | UFD Scientist delivered a prototype 10575 | -4/Upper Caves | Lost 6 parts (3p2n1u) 10610 | -4/Upper Caves | Found Prototype Protection 10891 | -4/Upper Caves | Build established: Scavenger-Assassin 11018 | -4/Upper Caves | Identified exit to Upper Caves 11165 | -4/Upper Caves | Entered another Upper Caves area 11186 | -4/Upper Caves | Encountered a Warlord checkpoint 11451 | -4/Upper Caves | Build established: Assassin 11492 | -4/Upper Caves | Entered an active Warlord outpost 11495 | -4/Upper Caves | A Commander dispatched an escort 11517 | -4/Upper Caves | Learned location of Armory (-3) 11517 | -4/Upper Caves | Learned location of 1 exit from Factory 11517 | -4/Upper Caves | Learned Factory trap positions 11517 | -4/Upper Caves | Learned Armory stockpile data 11517 | -4/Upper Caves | Learned Armory terminal intel 11607 | -4/Upper Caves | Attracted the attention of an 0b10 checkpoint 11624 | -4/Upper Caves | Core integrity fell below 50% 11638 | -4/Upper Caves | Discovered new exit (range 18) 11647 | -4/Upper Caves | Identified exit to Zhirov 11648 | -4/Upper Caves | Entered Zhirov 11648 | -4/Zhirov | Discovered new exit (range 3) 11659 | -4/Zhirov | Met Zhirov 11671 | -4/Zhirov | Learned location of Quarantine (-2) 11671 | -4/Zhirov | Learned location of Command (-1) 11683 | -4/Zhirov | Zhirov requested help retrieving the SGEMP Prototype 11693 | -4/Zhirov | Found Alien Artifact 11693 | -4/Zhirov | Identified Integrated Reactor 11693 | -4/Zhirov | Installed Integrated Reactor, increased core energy generation (+10) 11703 | -4/Zhirov | Found Alien Artifact 11784 | -4/Zhirov | Identified exit to Proximity Caves 11786 | -4/Zhirov | Entered Proximity Caves 11895 | -3/Proximity Caves | Attracted the attention of an 0b10 outpost 11925 | -3/Proximity Caves | Core integrity fell below 20% 11928 | -3/Proximity Caves | Identified Enh. Scrap Shield 11937 | -3/Proximity Caves | Identified Transdimensional Reconstructor 11937 | -3/Proximity Caves | Warped through subspace 11989 | -3/Proximity Caves | Attracted the attention of an 0b10 checkpoint 12000 | -3/Proximity Caves | Destroyed by Y-72 Warden with Quantum Rifle Last Messages --------------- repair. 11928_ Identified Enh. Scrap Shield. 11931_ Adv. Myomer Leg blown off. 11931_ E-15 Imp destroyed. 11932_ Enh. Scrap Shield absorbs Adv. Myomer Leg into its structure (+8). 11932_ BR7JVHME4/5<9/DFL9JXP9QIDBN% X>L 11933_ Critical hit (Burn: +50). 11936_ Dropped Exp. Weapon Shielding. 11937_ Enh. Scrap Shield absorbs Exp. Weapon Shielding into its structure (+8). 11937_ Identified Transdimensional Reconstructor. 11937_ Warped through subspace. 11947_ System corrupted: Heat flow error (+181). 11986_ =WVZZLSE&JFKX 11988_ Penetrated by Slug. 11989_ Y-72 Warden: "INTERCEPTING UNREGISTERED DERELICT." [Achievement: I Was Wrong!] Map ----- +----------------------------------------------------+ | ???? ?????? #??????# #????????# #???? | | ??? #????? ?????????# #???????? ##??? | | ??? #??? ???????????# ##??????? #??? | | ?? ### #?????????????# ## #????? #??? | | ?? #??????????????# ## ##?????# #???? | | ? #???????????????# ## ###??##### #????? | | # #????????????????# ## ###### #????? | | ! #?????????????????# ## ## #?????? | | = #?????????????????# ## # ##????? | | ##????????????????# #????? | | #????????????????#### #????? | | #???????????????????### ## ##???? | | ##????????????s?ss?????## ### #???? | | ####???????????????????????# #?## #???? | | ####???????????????????s??????## ##??#### #???? | | ##??????????????????????????????####??????# #???? | | ?????????????????????????????????########## #???? | | ?????????????????????????????????# #???? | | ?????????????????????????????????# #???? | | ????????????????##???????????#### ##########???? | | ????????????????? ??#???????# #????????????? | | ?????????????????# ## ####### ####????????????? | | ?? ???????????# # #???????????????? | | ???? ##### Y ##???????????????? | | ??????????# s g ######????????????????? | | ?????????# @ #?????????????????????? | | ####?????????# #????????????????????? | | ##????????????# #????????????????????? | | ??????????????# ##????????????????????? | | ??????????????# ##?????????????????????? | | ??????????????# ###??????????????????????? | | ??????????????##########?????????????????????????? | | ?????????????????????????????????????????????????? | | ?????????????????????????????????????????????????? | | ?????????????????????????????????????????????????? | | ?????????????????????????????????????????????????? | | ?????????????????????????????????????????????????? | | ?????????????????????????????????????????????????? | | ?????????????????????????????????????????????????? | | ?????????????????????????????????????????????????? | | ?????????????????????????????????????????????????? | | ?????????????????????????????????????????????????? | | ?????????????????????????????????????????????????? | | ?????????????????????????????????????????????????? | | ?????????????????????????????????????????????????? | | ?????????????????????????????????????????????????? | | ?????????????????????????????????????????????????? | | | | | | | +----------------------------------------------------+ Best States ------------- Heat Dissipation 62 Energy Generation 47 Energy Capacity 540 Matter Stores 300 Matter Capacity 300 Sight Range 22 Robot Scan Range 16 Terrain Scan Range 16 Terrain Scan Density 10 Jamming Range 12 Power Amplification 30 Additional Mass Support 9 Armor Coverage 800 Resistance: KI 30 Weapon Shielding 90 Evasion (%) 73 Melee Accuracy 6 Target Analysis 5 Recoil Reduction 2 Offensive Hacking 22 Defensive Hacking 21 Item Schematics ----------------- Assault Drone Bay | -4/Zhirov | Free Exp. Heat Sink | -4/Zhirov | Free Exp. Optical Array | -4/Zhirov | Free Imp. Arc Thrower | -4/Zhirov | Free Robot Schematics ------------------ None Fabricated ------------ Nothing Repaired ---------- Nothing Alien Tech Used ----------------- Integrated Reactor Transdimensional Reconstructor Achievements -------------- I Was Wrong! Challenges ------------ None Game ------ Seed DisposableTractorMace Manual? 0 Play Time 02:05:24 Cumulative 144.1 hours Start 2025.08.14 @ 13:14:21 End 2025.08.14 @ 15:20:15 Sessions 1 Manual Loads 0 Difficulty Rogue Special Mode None Game No. 244 Rogue 244 Adventurer 0 Explorer 0 Win Type - Total 2 Types 1/0/1/0/0/0/0/0/0/0 Lore% 75 Gallery% 70 Achievement% 51 Wizard Run 0 Options --------- Layout 1 ASCII 0 Keyboard 0 Movement Mouse Keybinds 0 Fullscreen 1 Font 24/Smallcaps Map View 50x40 Zoom Use 0% Tactical HUD 1 Map Filters NONE Filters NONE Steam 1 RUN: 60d078cd-5b75-44a9-972c-df6dd0c0bb15